[Event "ROU-chT 1st League 2019"]
[Site "Mamaia"]
[Date "2019.09.25"]
[Round "5.14"]
[White "Schitco, Ivan"]
[Black "Morozov, Nichita"]
[Result "1/2-1/2"]
[ECO "D85"]
[WhiteElo "2492"]
[BlackElo "2394"]
[Annotator "ChessBase"]
[PlyCount "82"]
[EventDate "2019.09.21"]
[EventType "team-tourn"]
[EventCountry "ROU"]
[SourceTitle "playchess.com"]
[Source "ChessBase"]
[SourceQuality "1"]
[TimeControl "40/5400+30:1800+30"]

1. c4 {[%emt 0:00:00]} Nf6 {[%emt 0:00:00]} 2. Nc3 {[%emt 0:00:00]} g6 {[%emt 0:04:53]} 3. d4 {[%emt 0:01:26]} d5 {[%emt 0:00:07]} 4. cxd5 {[%emt 0:00:56]} Nxd5 {[%emt 0:00:26]} 5. e4 {[%emt 0:00:55]} Nxc3 {[%emt 0:00:07]} 6. bxc3 {[%emt 0:00:03]} Bg7 {[%emt 0:00:04]} 7. Nf3 {[%emt 0:00:18]} c5 {[%emt 0:00:31]} 8. Be3 {[%emt 0:00:06]} Qa5 {[%emt 0:04:29]} 9. Qd2 {[%emt 0:00:17]} O-O {[%emt 0:03:49]} 10. Rc1 {[%emt 0:00:23]} Bg4 {[%emt 0:02:05]} 11. d5 {[%emt 0:05:00]} Nd7 {[%emt 0:15:08]} 12. c4 {[%emt 0:06:53]} Qc7 {[%emt 0:01:44]} 13. Bd3 {[%emt 0:10:09]} Bxf3 {[%emt 0:05:16]} 14. gxf3 {[%emt 0:00:05]} f5 {[%emt 0:00:07]} 15. exf5 {[%emt 0:02:25]} Ne5 {[%emt 0:00:44]} 16. Be2 {[%emt 0:01:03]} gxf5 {[%emt 0:00:29]} 17. f4 {[%emt 0:03:23]} Ng6 {[%emt 0:01:02]} 18. Rg1 {[%emt 0:16:37]} Rad8 {[%emt 0:03:29]} 19. Bh5 {[%emt 0:05:38]} Rd6 {[%emt 0:03:26]} 20. Bxg6 {[%emt 0:04:41]} Rxg6 {[%emt 0:03:06]} 21. Ke2 {[%emt 0:01:03]} Rff6 {[%emt 0:00:24]} 22. Qc2 {[%emt 0:03:22]} Qc8 {[%emt 0:05:24]} 23. h4 {[%emt 0:06:03]} Rb6 {[%emt 0:07:52]} 24. h5 {[%emt 0:01:30]} Rb2 {[%emt 0:03:02]} 25. hxg6 {[%emt 0:00:17]} Rxc2+ {[%emt 0:00:05]} 26. Rxc2 {[%emt 0:00:02]} h5 {[%emt 0:00:16]} 27. Rh1 {[%emt 0:03:49]} Bf6 {[%emt 0:00:25]} 28. Rxh5 {[%emt 0:00:53]} Kg7 {[%emt 0:00:03]} 29. Bd2 {[%emt 0:06:54]} Qc7 {[%emt 0:05:34]} 30. Rh3 {[%emt 0:01:24]} Qb6 {[%emt 0:00:35]} 31. Rb3 {[%emt 0:01:15]} Qa6 {[%emt 0:00:05]} 32. Be3 {[%emt 0:02:55]} b6 {[%emt 0:00:50]} 33. Bc1 {[%emt 0:01:20]} Kxg6 {[%emt 0:00:32]} 34. Ra3 {[%emt 0:01:15]} Qc8 {[%emt 0:01:36]} 35. Bb2 {[%emt 0:01:16]} Bxb2 {[%emt 0:01:03]} 36. Rxb2 {[%emt 0:00:16]} Qh8 {[%emt 0:00:01]} 37. Rc2 {[%emt 0:01:44]} Qd4 {[%emt 0:01:26]} 38. Re3 {[%emt 0:02:35]} Kf7 {[%emt 0:00:10]} 39. Ke1 {[%emt 0:02:47]} Qa1+ {[%emt 0:03:21]} 40. Ke2 {[%emt 0:00:00]} Qd4 {[%emt 0:00:00]} 41. Ke1 Qa1+ {[%emt 0:00:09]} 1/2-1/2

[Event "ROU-chT 1st League 2019"]
[Site "Mamaia"]
[Date "2019.09.25"]
[Round "5.15"]
[White "Ionescu, Constantin"]
[Black "Vrencian, Lehel"]
[Result "1-0"]
[ECO "A55"]
[WhiteElo "2426"]
[BlackElo "2306"]
[Annotator "NA"]
[PlyCount "63"]
[EventDate "2019.09.21"]
[EventType "team-tourn"]
[EventCountry "ROU"]
[SourceTitle "playchess.com"]
[Source "ChessBase"]
[SourceQuality "1"]
[TimeControl "40/5400+30:1800+30"]

1. Nf3 {[%emt 0:00:00]} Nf6 {[%emt 0:00:15]} 2. c4 {[%emt 0:00:00]} d6 {[%emt 0:00:04]} 3. d4 {[%emt 0:00:08]} Nbd7 {[%emt 0:00:13]} 4. Nc3 {[%emt 0:00:07]} e5 {[%emt 0:00:05]} 5. e4 {[%emt 0:00:08]} c6 {[%emt 0:00:11]} 6. Be2 {[%emt 0:00:08]} a6 {[%emt 0:00:12]} 7. Rb1 {[%emt 0:00:47]} Be7 {[%emt 0:00:50]} 8. O-O {[%emt 0:00:14]} O-O {[%emt 0:00:44]} 9. b4 {[%emt 0:02:10]} b5 {[%emt 0:00:09]} 10. dxe5 {[%emt 0:13:07]} dxe5 {[%emt 0:01:02]} 11. c5 {[%emt 0:00:13]} a5 {[%emt 0:00:54]} 12. a3 {[%emt 0:00:08]} Qc7 {[%emt 0:00:27]} 13. Bb2 {[%emt 0:00:33]} Rd8 {[%emt 0:00:59]} 14. Qc2 {[%emt 0:00:44]} axb4 {[%emt 0:15:50]} 15. axb4 {[%emt 0:00:10]} Nf8 {[%emt 0:01:00]} 16. Nxe5 {[%emt 0:11:43]} Qxe5 {[%emt 0:00:07]} 17. Nd5 {[%emt 0:00:05]} Rxd5 {[%emt 0:00:05]} 18. Bxe5 {[%emt 0:02:13]} Rxe5 {[%emt 0:00:07]} 19. f3 {[%emt 0:00:43]} Ra4 {[%emt 0:09:55]} 20. Qc3 {[%emt 0:04:23]} Ng6 {[%emt 0:13:36]} 21. Bd1 {[%emt 0:01:13]} Ra8 {[%emt 0:02:30]} 22. Bc2 {[%emt 0:01:47]} Rh5 {[%emt 0:08:22]} 23. Ra1 {[%emt 0:01:30]} Rb8 {[%emt 0:03:06]} 24. f4 {[%emt 0:02:53]} Rh4 {[%emt 0:19:40]} 25. g3 {[%emt 0:00:31]} Rh3 {[%emt 0:02:28]} 26. f5 {[%emt 0:01:52]} Nf8 {[%emt 0:00:39]} 27. Qe5 {[%emt 0:04:24]} Rb7 {[%emt 0:01:15]} 28. Ra8 {[%emt 0:00:23]} Rxh2 {[%emt 0:02:40]} 29. Bd1 {[%emt 0:00:46]} Rd7 {[%emt 0:03:32]} 30. Rxc8 {[%emt 0:02:37]} Rdd2 {[%emt 0:08:21]} 31. Bf3 {[%emt 0:00:08]} Rh3 {[%emt 0:01:45]} 32. Rf2 {[%emt 0:00:55]} 1-0

[Event "ROU-chT 1st League 2019"]
[Site "Mamaia"]
[Date "2019.09.25"]
[Round "5.16"]
[White "Nastase, Robert-Paul"]
[Black "Cosma, Ioan"]
[Result "0-1"]
[ECO "B31"]
[WhiteElo "2280"]
[BlackElo "2394"]
[Annotator "NA"]
[PlyCount "118"]
[EventDate "2019.09.21"]
[EventType "team-tourn"]
[EventCountry "ROU"]
[SourceTitle "playchess.com"]
[Source "ChessBase"]
[SourceQuality "1"]
[TimeControl "40/5400+30:1800+30"]

1. e4 {[%emt 0:02:16]} c5 {[%emt 0:00:00]} 2. Nf3 {[%emt 0:00:05]} Nc6 {[%emt 0:00:00]} 3. Bb5 {[%emt 0:00:06]} g6 {[%emt 0:00:56]} 4. Bxc6 {[%emt 0:00:05]} dxc6 {[%emt 0:00:05]} 5. d3 {[%emt 0:00:03]} Bg4 {[%emt 0:02:16]} 6. Nbd2 {[%emt 0:00:06]} Bg7 {[%emt 0:01:38]} 7. h3 {[%emt 0:00:05]} Bxf3 {[%emt 0:00:09]} 8. Nxf3 {[%emt 0:00:03]} Nf6 {[%emt 0:00:36]} 9. Be3 {[%emt 0:00:42]} Nd7 {[%emt 0:02:56]} 10. O-O {[%emt 0:00:07]} O-O {[%emt 0:03:06]} 11. c3 {[%emt 0:00:26]} b6 {[%emt 0:00:37]} 12. Qc2 {[%emt 0:00:15]} e5 {[%emt 0:01:23]} 13. Rad1 {[%emt 0:00:26]} Qe7 {[%emt 0:03:09]} 14. Nd2 {[%emt 0:03:44]} Rfd8 {[%emt 0:04:11]} 15. Nc4 {[%emt 0:01:26]} Nf8 {[%emt 0:00:38]} 16. f4 {[%emt 0:00:06]} exf4 {[%emt 0:01:23]} 17. Bxf4 {[%emt 0:00:49]} Ne6 {[%emt 0:00:26]} 18. Be5 {[%emt 0:00:50]} b5 {[%emt 0:03:48]} 19. Bxg7 {[%emt 0:00:07]} Nxg7 {[%emt 0:00:07]} 20. Na5 {[%emt 0:10:34]} Qc7 {[%emt 0:02:32]} 21. Nb3 {[%emt 0:02:29]} Ne6 {[%emt 0:01:38]} 22. Qf2 {[%emt 0:01:51]} Qe7 {[%emt 0:01:32]} 23. d4 {[%emt 0:00:35]} cxd4 {[%emt 0:09:34]} 24. cxd4 {[%emt 0:00:18]} Rd7 {[%emt 0:00:43]} 25. Na5 {[%emt 0:04:25]} Rc8 {[%emt 0:03:50]} 26. d5 {[%emt 0:00:23]} Nd8 {[%emt 0:09:33]} 27. Nb3 {[%emt 0:12:12]} cxd5 {[%emt 0:08:56]} 28. exd5 {[%emt 0:00:40]} Rc4 {[%emt 0:01:35]} 29. Rfe1 {[%emt 0:03:54]} Qg5 {[%emt 0:02:56]} 30. Na5 {[%emt 0:11:34]} Rf4 {[%emt 0:02:56]} 31. Qc5 {[%emt 0:01:02]} Kg7 {[%emt 0:07:29]} 32. Qxb5 {[%emt 0:04:00]} Rd6 {[%emt 0:08:08]} 33. Qc5 {[%emt 0:02:48]} Rdf6 {[%emt 0:02:14]} 34. Qxa7 {[%emt 0:06:56]} Rf2 {[%emt 0:02:15]} 35. Qxf2 {[%emt 0:00:13]} Rxf2 {[%emt 0:00:04]} 36. Kxf2 {[%emt 0:00:04]} Qf6+ {[%emt 0:00:04]} 37. Kg3 {[%emt 0:05:20]} Qd6+ {[%emt 0:00:18]} 38. Kf3 {[%emt 0:00:07]} Qf6+ {[%emt 0:01:06]} 39. Kg3 {[%emt 0:05:33]} Qd6+ {[%emt 0:00:07]} 40. Kf2 {[%emt 0:00:00]} Qb6+ {[%emt 0:00:00]} 41. Re3 {[%emt 0:01:29]} Qxa5 {[%emt 0:00:27]} 42. a3 {[%emt 0:00:19]} Qc5 {[%emt 0:08:26]} 43. Rd2 {[%emt 0:06:24]} Nb7 {[%emt 0:00:13]} 44. b4 {[%emt 0:00:07]} Qc7 {[%emt 0:00:37]} 45. Ke2 {[%emt 0:06:20]} Nd6 {[%emt 0:00:23]} 46. Kd1 {[%emt 0:00:13]} Qc4 {[%emt 0:01:24]} 47. Red3 {[%emt 0:00:24]} h5 {[%emt 0:00:35]} 48. Ke1 {[%emt 0:00:17]} h4 {[%emt 0:00:46]} 49. Rd4 {[%emt 0:02:54]} Qc1+ {[%emt 0:00:27]} 50. Ke2 {[%emt 0:00:06]} Qxa3 {[%emt 0:00:07]} 51. Rxh4 {[%emt 0:00:09]} Qg3 {[%emt 0:01:14]} 52. Rg4 {[%emt 0:00:24]} Qe5+ {[%emt 0:00:07]} 53. Kd1 {[%emt 0:00:20]} f5 {[%emt 0:05:12]} 54. Rgd4 {[%emt 0:00:08]} Kf6 {[%emt 0:00:46]} 55. Kc2 {[%emt 0:00:12]} Qe1 {[%emt 0:00:43]} 56. Rd1 {[%emt 0:00:15]} Qe8 {[%emt 0:00:21]} 57. Kb3 {[%emt 0:00:19]} Qe3+ {[%emt 0:00:29]} 58. R4d3 {[%emt 0:00:15]} Qe4 {[%emt 0:00:14]} 59. Rc3 {[%emt 0:01:30]} Qxg2 {[%emt 0:01:10]} 0-1

[Event "ROU-chT 1st League 2019"]
[Site "Mamaia"]
[Date "2019.09.25"]
[Round "5.17"]
[White "Itkis, Boris"]
[Black "Pop, Alexandru"]
[Result "1-0"]
[ECO "A46"]
[WhiteElo "2323"]
[BlackElo "2274"]
[Annotator "NA"]
[PlyCount "93"]
[EventDate "2019.09.21"]
[EventType "team-tourn"]
[EventCountry "ROU"]
[SourceTitle "playchess.com"]
[Source "ChessBase"]
[SourceQuality "1"]
[TimeControl "40/5400+30:1800+30"]

1. d4 {[%emt 0:00:00]} Nf6 {[%emt 0:00:00]} 2. Nf3 {[%emt 0:00:00]} d5 {[%emt 0:00:11]} 3. c4 {[%emt 0:00:04]} e6 {[%emt 0:00:06]} 4. g3 {[%emt 0:00:20]} Bb4+ {[%emt 0:01:56]} 5. Bd2 {[%emt 0:00:27]} Bd6 {[%emt 0:00:06]} 6. Bg2 {[%emt 0:01:29]} c6 {[%emt 0:00:48]} 7. Qc2 {[%emt 0:01:18]} O-O {[%emt 0:00:18]} 8. O-O {[%emt 0:00:03]} Nbd7 {[%emt 0:01:20]} 9. Bg5 {[%emt 0:05:14]} h6 {[%emt 0:11:48]} 10. Bxf6 {[%emt 0:00:09]} Nxf6 {[%emt 0:02:34]} 11. Nbd2 {[%emt 0:00:09]} Qe7 {[%emt 0:05:26]} 12. e4 {[%emt 0:00:18]} Nxe4 {[%emt 0:00:23]} 13. Nxe4 {[%emt 0:00:10]} dxe4 {[%emt 0:00:03]} 14. Qxe4 {[%emt 0:00:02]} c5 {[%emt 0:05:30]} 15. dxc5 {[%emt 0:00:46]} Bxc5 {[%emt 0:00:17]} 16. Ne5 {[%emt 0:00:10]} a5 {[%emt 0:09:20]} 17. Nd3 {[%emt 0:11:48]} Ra6 {[%emt 0:05:10]} 18. Rad1 {[%emt 0:01:02]} Ba7 {[%emt 0:04:54]} 19. Qe5 {[%emt 0:13:29]} Qg5 {[%emt 0:17:50]} 20. Qxg5 {[%emt 0:07:11]} hxg5 {[%emt 0:00:06]} 21. c5 {[%emt 0:00:09]} Bb8 {[%emt 0:03:46]} 22. Rfe1 {[%emt 0:04:32]} Rd8 {[%emt 0:11:48]} 23. c6 {[%emt 0:03:55]} b6 {[%emt 0:02:53]} 24. b4 {[%emt 0:20:11]} Bc7 {[%emt 0:00:39]} 25. b5 {[%emt 0:00:06]} Ra7 {[%emt 0:03:04]} 26. Nb2 {[%emt 0:04:58]} Rxd1 {[%emt 0:01:30]} 27. Rxd1 {[%emt 0:00:01]} Kf8 {[%emt 0:00:21]} 28. Nc4 {[%emt 0:00:08]} Ke7 {[%emt 0:00:09]} 29. a4 {[%emt 0:01:18]} Ra8 {[%emt 0:01:19]} 30. Kf1 {[%emt 0:00:11]} Rb8 {[%emt 0:00:19]} 31. Ke2 {[%emt 0:00:16]} Ra8 {[%emt 0:02:33]} 32. f4 {[%emt 0:05:09]} gxf4 {[%emt 0:02:20]} 33. gxf4 {[%emt 0:00:06]} Rb8 {[%emt 0:01:01]} 34. Ke3 {[%emt 0:00:55]} f6 {[%emt 0:03:40]} 35. h4 {[%emt 0:02:37]} Ra8 {[%emt 0:00:33]} 36. Bh3 {[%emt 0:01:37]} Ra7 {[%emt 0:01:01]} 37. h5 {[%emt 0:01:04]} Ra8 {[%emt 0:00:21]} 38. Kf3 {[%emt 0:01:07]} Ra7 {[%emt 0:00:20]} 39. Ke4 {[%emt 0:01:30]} Ra8 {[%emt 0:00:58]} 40. f5 {[%emt 0:00:00]} e5 {[%emt 0:00:00]} 41. Ne3 {[%emt 0:00:35]} Ra7 {[%emt 0:01:53]} 42. Bf1 {[%emt 0:00:25]} Bd8 {[%emt 0:01:35]} 43. Bc4 {[%emt 0:00:16]} Bc7 {[%emt 0:00:10]} 44. Nd5+ {[%emt 0:00:56]} Kf8 {[%emt 0:00:42]} 45. Ne3 {[%emt 0:02:08]} Ke7 {[%emt 0:00:06]} 46. Rg1 {[%emt 0:00:23]} Kf8 {[%emt 0:00:17]} 47. h6 {[%emt 0:00:05]} 1-0

[Event "ROU-chT 1st League 2019"]
[Site "Mamaia"]
[Date "2019.09.25"]
[Round "5.18"]
[White "Ciorica, Mihai-Vlad"]
[Black "Ileana, George"]
[Result "0-1"]
[ECO "E16"]
[WhiteElo "1985"]
[BlackElo "2349"]
[Annotator "NA"]
[PlyCount "108"]
[EventDate "2019.09.21"]
[EventType "team-tourn"]
[EventCountry "ROU"]
[SourceTitle "playchess.com"]
[Source "ChessBase"]
[SourceQuality "1"]
[TimeControl "40/5400+30:1800+30"]

1. d4 {[%emt 0:01:51]} Nf6 {[%emt 0:00:06]} 2. c4 {[%emt 0:00:04]} e6 {[%emt 0:00:00]} 3. Nf3 {[%emt 0:00:02]} Bb4+ {[%emt 0:00:00]} 4. Bd2 {[%emt 0:00:05]} Qe7 {[%emt 0:00:13]} 5. g3 {[%emt 0:00:09]} Nc6 {[%emt 0:00:53]} 6. Bg2 {[%emt 0:00:13]} O-O {[%emt 0:00:27]} 7. Nc3 {[%emt 0:00:22]} Bxc3 {[%emt 0:01:05]} 8. Bxc3 {[%emt 0:00:04]} Ne4 {[%emt 0:00:06]} 9. Rc1 {[%emt 0:00:03]} d6 {[%emt 0:00:06]} 10. d5 {[%emt 0:01:01]} Nd8 {[%emt 0:00:08]} 11. dxe6 {[%emt 0:03:28]} Nxe6 {[%emt 0:00:06]} 12. Nd4 {[%emt 0:01:38]} Nxc3 {[%emt 0:09:46]} 13. Rxc3 {[%emt 0:00:43]} a5 {[%emt 0:00:22]} 14. Nxe6 {[%emt 0:02:03]} Bxe6 {[%emt 0:00:15]} 15. O-O {[%emt 0:00:22]} Rab8 {[%emt 0:00:51]} 16. Qd4 {[%emt 0:04:31]} Rfd8 {[%emt 0:06:43]} 17. Rfc1 {[%emt 0:11:32]} b6 {[%emt 0:00:42]} 18. Bc6 {[%emt 0:07:25]} Qg5 {[%emt 0:00:42]} 19. Bd5 {[%emt 0:00:11]} c5 {[%emt 0:00:48]} 20. Qe3 {[%emt 0:01:08]} Qxe3 {[%emt 0:00:14]} 21. Rxe3 {[%emt 0:00:04]} Bxd5 {[%emt 0:00:05]} 22. cxd5 {[%emt 0:00:06]} Kf8 {[%emt 0:01:08]} 23. a4 {[%emt 0:02:22]} Re8 {[%emt 0:00:52]} 24. Rxe8+ {[%emt 0:03:40]} Rxe8 {[%emt 0:00:35]} 25. e3 {[%emt 0:02:44]} Re4 {[%emt 0:00:04]} 26. b3 {[%emt 0:00:44]} Rb4 {[%emt 0:00:25]} 27. Rc3 {[%emt 0:00:41]} g5 {[%emt 0:02:29]} 28. f4 {[%emt 0:01:55]} g4 {[%emt 0:00:31]} 29. h3 {[%emt 0:06:55]} h5 {[%emt 0:00:08]} 30. hxg4 {[%emt 0:00:03]} hxg4 {[%emt 0:00:04]} 31. Kf2 {[%emt 0:00:38]} Kg7 {[%emt 0:00:12]} 32. e4 {[%emt 0:05:00]} Rxe4 {[%emt 0:00:26]} 33. Re3 {[%emt 0:00:03]} Rb4 {[%emt 0:03:06]} 34. Re7 {[%emt 0:00:06]} Rxb3 {[%emt 0:04:41]} 35. Rd7 {[%emt 0:00:05]} Kf6 {[%emt 0:00:15]} 36. Rxd6+ {[%emt 0:00:48]} Kf5 {[%emt 0:00:22]} 37. Rd7 {[%emt 0:02:45]} Ke4 {[%emt 0:00:37]} 38. d6 {[%emt 0:01:42]} Rb2+ {[%emt 0:00:41]} 39. Ke1 {[%emt 0:00:44]} Kd5 {[%emt 0:00:29]} 40. Rxf7 {[%emt 0:00:00]} Kxd6 {[%emt 0:00:00]} 41. Rg7 {[%emt 0:00:35]} c4 {[%emt 0:00:57]} 42. Rxg4 {[%emt 0:00:21]} c3 {[%emt 0:23:03]} 43. Kd1 {[%emt 0:02:30]} b5 {[%emt 0:08:19]} 44. axb5 {[%emt 0:25:27]} a4 {[%emt 0:01:58]} 45. Rg6+ {[%emt 0:01:19]} Kd5 {[%emt 0:02:50]} 46. Ra6 {[%emt 0:01:41]} Kc4 {[%emt 0:00:44]} 47. Ra8 {[%emt 0:22:56]} Kb3 {[%emt 0:31:48]} 48. b6 {[%emt 0:00:27]} c2+ {[%emt 0:00:16]} 49. Kd2 {[%emt 0:00:17]} Rb1 {[%emt 0:00:02]} 50. Rc8 {[%emt 0:00:41]} Rd1+ {[%emt 0:00:03]} 51. Ke2 {[%emt 0:00:25]} Rd7 {[%emt 0:00:03]} 52. b7 {[%emt 0:12:09]} Rxb7 {[%emt 0:00:13]} 53. Kd2 {[%emt 0:00:01]} Rd7+ {[%emt 0:00:27]} 54. Ke2 {[%emt 0:00:02]} Rd1 {[%emt 0:01:46]} 0-1

[Event "ROU-chT 1st League 2019"]
[Site "Mamaia"]
[Date "2019.09.25"]
[Round "5.21"]
[White "Grigore, George-Gabriel"]
[Black "Svetushkin, Dmitry"]
[Result "0-1"]
[ECO "D10"]
[WhiteElo "2491"]
[BlackElo "2534"]
[Annotator "ChessBase"]
[PlyCount "72"]
[EventDate "2019.09.21"]
[EventType "team-tourn"]
[EventCountry "ROU"]
[SourceTitle "playchess.com"]
[Source "ChessBase"]
[SourceQuality "1"]
[TimeControl "40/5400+30:1800+30"]

1. d4 {[%emt 0:00:00]} d5 {[%emt 0:00:00]} 2. c4 {[%emt 0:00:05]} c6 {[%emt 0:00:00]} 3. Nc3 {[%emt 0:00:21]} Nf6 {[%emt 0:00:00]} 4. cxd5 {[%emt 0:00:15]} cxd5 {[%emt 0:00:11]} 5. Bf4 {[%emt 0:00:05]} Nc6 {[%emt 0:00:11]} 6. e3 {[%emt 0:00:09]} Bg4 {[%emt 0:00:27]} 7. f3 {[%emt 0:00:20]} Bd7 {[%emt 0:00:18]} 8. Bd3 {[%emt 0:00:13]} e6 {[%emt 0:00:23]} 9. g4 {[%emt 0:00:22]} Bb4 {[%emt 0:05:32]} 10. Nge2 {[%emt 0:03:30]} Qe7 {[%emt 0:00:44]} 11. a3 {[%emt 0:07:03]} e5 {[%emt 0:11:46]} 12. dxe5 {[%emt 0:04:59]} Bxc3+ {[%emt 0:00:14]} 13. Nxc3 {[%emt 0:00:16]} Nxe5 {[%emt 0:00:03]} 14. Be2 {[%emt 0:05:15]} Bc6 {[%emt 0:03:44]} 15. Qd4 {[%emt 0:12:21]} Ned7 {[%emt 0:07:11]} 16. Rd1 {[%emt 0:11:33]} O-O {[%emt 0:01:11]} 17. h4 {[%emt 0:04:47]} Nc5 {[%emt 0:02:03]} 18. Qe5 {[%emt 0:12:33]} Ne6 {[%emt 0:01:22]} 19. Bg3 {[%emt 0:03:51]} Rfe8 {[%emt 0:18:11]} 20. Rh2 {[%emt 0:10:45]} Rad8 {[%emt 0:01:34]} 21. h5 {[%emt 0:04:49]} d4 {[%emt 0:08:30]} 22. exd4 {[%emt 0:03:54]} Nd5 {[%emt 0:00:34]} 23. Kf1 {[%emt 0:07:25]} Nxc3 {[%emt 0:05:13]} 24. bxc3 {[%emt 0:00:11]} Qxa3 {[%emt 0:00:17]} 25. d5 {[%emt 0:03:00]} Nc5 {[%emt 0:11:31]} 26. Qf5 {[%emt 0:00:13]} Ba4 {[%emt 0:02:11]} 27. Re1 {[%emt 0:00:35]} Qxc3 {[%emt 0:00:29]} 28. d6 {[%emt 0:01:21]} Bc6 {[%emt 0:04:26]} 29. g5 {[%emt 0:02:52]} Bd7 {[%emt 0:03:47]} 30. Qd5 {[%emt 0:01:02]} Be6 {[%emt 0:01:01]} 31. Qd1 {[%emt 0:00:09]} Ne4 {[%emt 0:02:13]} 32. Bf4 {[%emt 0:00:06]} Nxd6 {[%emt 0:00:41]} 33. Qa1 {[%emt 0:01:10]} Qb4 {[%emt 0:02:04]} 34. Be5 {[%emt 0:00:41]} Nc4 {[%emt 0:02:53]} 35. Bxg7 {[%emt 0:00:29]} Ne3+ {[%emt 0:00:16]} 36. Kg1 {[%emt 0:00:45]} Nc2 {[%emt 0:00:06]} 0-1

[Event "ROU-chT 1st League 2019"]
[Site "Mamaia"]
[Date "2019.09.25"]
[Round "5.23"]
[White "Szabo, Attila"]
[Black "Nevednichy, Vladislav"]
[Result "0-1"]
[ECO "B51"]
[WhiteElo "2239"]
[BlackElo "2522"]
[Annotator "ChessBase"]
[PlyCount "72"]
[EventDate "2019.09.21"]
[EventType "team-tourn"]
[EventCountry "ROU"]
[SourceTitle "playchess.com"]
[Source "ChessBase"]
[SourceQuality "1"]
[TimeControl "40/5400+30:1800+30"]

1. e4 {[%emt 0:00:00]} c5 {[%emt 0:00:18]} 2. Nf3 {[%emt 0:00:00]} d6 {[%emt 0:00:15]} 3. Bb5+ {[%emt 0:01:06]} Nd7 {[%emt 0:00:05]} 4. d4 {[%emt 0:00:45]} Ngf6 {[%emt 0:01:54]} 5. Nc3 {[%emt 0:04:20]} cxd4 {[%emt 0:03:00]} 6. Nxd4 {[%emt 0:04:46]} a6 {[%emt 0:06:36]} 7. Bxd7+ {[%emt 0:02:22]} Bxd7 {[%emt 0:01:38]} 8. O-O {[%emt 0:00:56]} b5 {[%emt 0:07:29]} 9. Re1 {[%emt 0:00:57]} e6 {[%emt 0:00:49]} 10. Bg5 {[%emt 0:07:41]} Be7 {[%emt 0:01:32]} 11. Qd3 {[%emt 0:02:51]} O-O {[%emt 0:06:18]} 12. a3 {[%emt 0:02:57]} Qb6 {[%emt 0:02:30]} 13. Rad1 {[%emt 0:01:53]} Rfc8 {[%emt 0:07:56]} 14. Nb3 {[%emt 0:11:15]} Be8 {[%emt 0:02:46]} 15. Bf4 {[%emt 0:19:46]} Rd8 {[%emt 0:02:16]} 16. h3 {[%emt 0:02:42]} a5 {[%emt 0:01:34]} 17. Be3 {[%emt 0:17:41]} Qb7 {[%emt 0:01:29]} 18. f3 {[%emt 0:00:35]} b4 {[%emt 0:03:03]} 19. axb4 {[%emt 0:00:06]} Qxb4 {[%emt 0:04:42]} 20. Bc1 {[%emt 0:04:20]} Nd7 {[%emt 0:03:52]} 21. Nd4 {[%emt 0:01:31]} Nc5 {[%emt 0:03:07]} 22. Qe2 {[%emt 0:01:22]} Rab8 {[%emt 0:04:16]} 23. Kh2 {[%emt 0:01:33]} a4 {[%emt 0:00:30]} 24. Nb1 {[%emt 0:02:12]} Bh4 {[%emt 0:00:22]} 25. g3 {[%emt 0:00:48]} Bf6 {[%emt 0:00:04]} 26. c3 {[%emt 0:00:31]} Qb7 {[%emt 0:00:29]} 27. Na3 {[%emt 0:00:24]} Nb3 {[%emt 0:02:31]} 28. Nxb3 {[%emt 0:00:49]} Qxb3 {[%emt 0:00:07]} 29. Rd3 {[%emt 0:03:10]} Qb7 {[%emt 0:02:26]} 30. Red1 {[%emt 0:00:28]} Be7 {[%emt 0:02:13]} 31. Kg2 {[%emt 0:00:17]} d5 {[%emt 0:01:20]} 32. c4 {[%emt 0:04:30]} dxe4 {[%emt 0:00:36]} 33. Qxe4 {[%emt 0:01:15]} Qxe4 {[%emt 0:01:32]} 34. fxe4 {[%emt 0:00:09]} Rxd3 {[%emt 0:00:39]} 35. Rxd3 {[%emt 0:00:07]} Bc6 {[%emt 0:00:02]} 36. Rd1 {[%emt 0:01:24]} Bxe4+ {[%emt 0:00:52]} 0-1

[Event "ROU-chT 1st League 2019"]
[Site "Mamaia"]
[Date "2019.09.25"]
[Round "5.24"]
[White "Costachi, Mihnea"]
[Black "Vasiesiu, Victor"]
[Result "1/2-1/2"]
[ECO "D76"]
[WhiteElo "2463"]
[BlackElo "2251"]
[Annotator "ChessBase"]
[PlyCount "49"]
[EventDate "2019.09.21"]
[EventType "team-tourn"]
[EventCountry "ROU"]
[SourceTitle "playchess.com"]
[Source "ChessBase"]
[SourceQuality "1"]
[TimeControl "40/5400+30:1800+30"]

1. d4 {[%emt 0:00:00]} Nf6 {[%emt 0:00:00]} 2. Nf3 {[%emt 0:00:35]} g6 {[%emt 0:00:00]} 3. g3 {[%emt 0:00:49]} Bg7 {[%emt 0:00:02]} 4. c4 {[%emt 0:00:43]} O-O {[%emt 0:00:10]} 5. Bg2 {[%emt 0:00:05]} d5 {[%emt 0:00:05]} 6. cxd5 {[%emt 0:04:59]} Nxd5 {[%emt 0:00:07]} 7. O-O {[%emt 0:01:31]} Nb6 {[%emt 0:00:05]} 8. Nc3 {[%emt 0:09:27]} Nc6 {[%emt 0:00:07]} 9. d5 {[%emt 0:00:26]} Bxc3 {[%emt 0:00:23]} 10. dxc6 {[%emt 0:04:41]} Bg7 {[%emt 0:01:33]} 11. Qxd8 {[%emt 0:07:49]} Rxd8 {[%emt 0:00:07]} 12. Bf4 {[%emt 0:00:02]} bxc6 {[%emt 0:06:20]} 13. Bxc7 {[%emt 0:01:04]} Rd7 {[%emt 0:00:30]} 14. Be5 {[%emt 0:00:31]} Ba6 {[%emt 0:08:56]} 15. Bxg7 {[%emt 0:09:25]} Kxg7 {[%emt 0:00:06]} 16. Rfe1 {[%emt 0:01:36]} f6 {[%emt 0:12:46]} 17. Rac1 {[%emt 0:01:11]} Bb7 {[%emt 0:06:56]} 18. Red1 {[%emt 0:05:42]} Rad8 {[%emt 0:00:46]} 19. Rxd7 {[%emt 0:00:05]} Rxd7 {[%emt 0:00:05]} 20. Kf1 {[%emt 0:08:09]} c5 {[%emt 0:00:59]} 21. Bh3 {[%emt 0:00:11]} Rd5 {[%emt 0:06:44]} 22. b3 {[%emt 0:05:59]} e5 {[%emt 0:05:28]} 23. e4 {[%emt 0:11:42]} Rd6 {[%emt 0:02:26]} 24. Rxc5 {[%emt 0:01:51]} Bxe4 {[%emt 0:00:10]} 25. Ke2 {[%emt 0:02:18]} 1/2-1/2